Cogmind - Beta 16 @@@ ROGUE MODE // 2025.11.10 @ 17:49:05 Player: Rocko1345 Result: Destroyed by DAS Turret with DAS Cannon Performance ------------- Evolutions (0) 0 Regions Visited (3) 600 Robots Destroyed (18) 90 Value Destroyed (449) 449 Prototype IDs (23) 460 Alien Tech Used (0) 0 Bonus (269) 269 TOTAL SCORE: 1868 Bonus ------- Aligned with FarCom 300 Friendly Fire -31 Cogmind --------- Core Integrity 0/250 Matter 298/300 Energy 100/100 System Corruption 0% Temperature Cool (0) Movement Core (800) Ox15 Location -10/Exiles Parts ------- > --- POWER (1) -------- (None) > --- PROPULSION (2) --- (None) > --- UTILITY (2) ------ High-capacity Storage Unit Improved Targeting Computer > --- WEAPON (2) ------- Heavy Assault Rifle Heavy Assault Rifle > --- INVENTORY (20) --- Aluminum Leg Aluminum Leg Improved Heat Sink Improved Heat Sink Medium Matter Pod (100) YOLO Cannon Light Assault Rifle Heavy Assault Rifle Grenade Launcher Datajack Mining Laser Peak State ------------ > --- POWER ------------ Ion Engine > --- PROPULSION ------- Light Treads > --- UTILITY ---------- High-capacity Storage Unit Improved Targeting Computer > --- WEAPON ----------- Heavy Assault Rifle Heavy Assault Rifle > --- INVENTORY -------- Aluminum Leg Aluminum Leg Improved Heat Sink Improved Heat Sink Medium Matter Pod YOLO Cannon Light Assault Rifle Heavy Assault Rifle Grenade Launcher Datajack Mining Laser [Rating: 12] Favorites ----------- Power Ion Engine Engine Ion Engine Propulsion Light Treads Treads Light Treads Leg Aluminum Leg Wheel Compact Wheel Utility High-capacity Storage Unit Storage High-capacity Storage Unit Processor Improved Targeting Computer Protection Medium Armor Plating Weapon Heavy Assault Rifle Energy Gun Small Laser Ballistic Gun Heavy Assault Rifle Build | -11 -10 -10 -10 ------- Run | Yrd Mat Min Exi Slots Evolved . | . . . . Power . | . . . . Propulsion . | . . . . Utility . | . . . . Weapon . | . . . . Parts Attached 18 | 6 11 1 . Power 2 | 1 1 . . Engine 2 | 1 1 . . Core . | . . . . Reactor . | . . . . Propulsion 6 | 2 4 . . Treads 2 | . 2 . . Leg 2 | 2 . . . Wheel 2 | . 2 . . Hover . | . . . . Flight . | . . . . Utility 5 | 1 4 . . Device . | . . . . Storage 3 | 1 2 . . Processor 1 | . 1 . . Hackware . | . . . . Protection 1 | . 1 . . Artifact . | . . . . Weapon 5 | 2 2 1 . Energy Gun 1 | 1 . . . Energy Cannon . | . . . . Ballistic Gun 4 | 1 2 1 . Ballistic Cannon . | . . . . Launcher . | . . . . Special Weapon . | . . . . Impact Weapon . | . . . . Slashing Weapon . | . . . . Piercing Weapon . | . . . . Special Melee Weapon . | . . . . Unidentified Prototypes . | . . . . Parts Lost 6 | . 2 2 2 Power 2 | . 1 . 1 Propulsion 2 | . . 1 1 Utility 1 | . 1 . . Weapon 1 | . . 1 . Highest Loss Streak 2 | . 2 2 2 To Critical Strikes . | . . . . Average Backups 8 | . 7 9 10 Power . | . . . . Propulsion 1 | . 2 2 2 Utility 1 | . . 1 3 Weapon 4 | . 4 4 4 Tool/Special . | . . . . Unused Backups 7 | . . . 7 Power . | . . . . Propulsion . | . . . . Utility 2 | . . . 2 Weapon 4 | . . . 4 Tool/Special 1 | . . . 1 Average Slot Usage (%) 90 | . 98 87 85 Engine 13 | . 13 14 14 Treads 16 | . 20 16 14 Wheel 1 | . 4 . . Storage 14 | . 14 14 14 Processor 9 | . 1 14 14 Protection 3 | . 11 . . Ballistic Gun 27 | . 27 27 28 Peak Build Rating 12 | 6 11 11 12 Average Rating 10 | 4 10 10 10 On Entrance 6 | . 6 11 10 Avg Prop Armor Cover (%) . | . . . . Naked Turns . | . . . . Heaviest Build 58 | 10 58 51 51 Greatest Support 40 | 20 40 40 20 Greatest Overweight (x) 2 | . 1 2 2 Average Overweight (x) 1 | . . 1 2 Largest Inventory Capacity 20 | 8 20 20 20 Average Capacity 18 | 7 17 20 20 Most Carried 12 | 2 9 10 12 Average Carried 9 | . 7 9 10 Final Capacity 20 | 8 20 20 20 Final Carried 12 | 2 9 10 12 Class Distribution -------------------- 100% | Mutant Dominant Class ---------------- Mutant | -10/Materials Mutant | -10/Mines Mutant | -10/Exiles Resources | -11 -10 -10 -10 ----------- Run | Yrd Mat Min Exi Matter Collected 774 | 252 305 217 . Remotely . | . . . . Salvage Created 572 | . 477 95 . Parts 29 | . 24 5 . Haulers Intercepted 1 | . 1 . . Recyclers Shooed . | . . . . Parts Field Recycled . | . . . . Retrieved Matter . | . . . . Parts Self-Destructed . | . . . . Prevented . | . . . . Parts Restored . | . . . . Kills | -11 -10 -10 -10 ------- Run | Yrd Mat Min Exi Combat Hostiles Destroyed 15 | . 11 4 . Guns 15 | . 11 4 . Classes Destroyed 5 | . 5 . . Hauler 1 | . 1 . . Operator 1 | . 1 . . Watcher 1 | . 1 . . Swarmer 6 | . 3 3 . Grunt 9 | . 8 1 . Best Kill Streak 4 | . 4 3 . Combat Bots Only 4 | . 4 3 . Max Kills in Single Turn 2 | . 2 1 . Gunslinging 1 | . 1 . . Exploded . | . . . . Melee . | . . . . Uniques/NPCs Destroyed . | . . . . Combat | -11 -10 -10 -10 -------- Run | Yrd Mat Min Exi Hostile Shots Fired 100 | . 63 34 3 Missed 25 | . 16 9 . Hits 75 | . 47 25 3 Projectile 75 | . 47 25 3 Critical Strikes 3 | . 2 1 . Damage Taken 1040 | . 550 305 185 Core 257 | . 65 69 123 Absorbed by Shields . | . . . . Core Remaining (%) 100 | 100 . . . Volleys Fired 56 | . 39 15 2 Largest 2 | . 2 2 2 Hottest 60 | . 60 46 46 Shots Fired 112 | . 78 30 4 Gun 112 | . 78 30 4 Cannon . | . . . . Launcher . | . . . . Special . | . . . . Kinetic 110 | . 76 30 4 Thermal 2 | . 2 . . Explosive . | . . . . Electromagnetic . | . . . . Robot Hit Streak 6 | . 6 6 3 Robot Miss Streak 3 | . 3 2 2 Penetration Max . | . . . . Secondary Targets 2 | . 1 1 . Max Gunslinging Chain 1 | . 1 1 . Shots Hit Robots 74 | . 49 22 3 Core Hits 30 | . 23 6 1 Critical Kills . | . . . . Critical Parts Destroyed . | . . . . Critical Strikes . | . . . . Melee Attacks . | . . . . Impact . | . . . . Slashing . | . . . . Piercing . | . . . . Sneak Attacks . | . . . . Combat Hostiles . | . . . . Follow-up Attacks . | . . . . Damage Inflicted 1150 | . 726 365 59 Guns 1150 | . 726 365 59 Cannons . | . . . . Explosions . | . . . . Melee . | . . . . Ramming . | . . . . Kinetic 1150 | . 726 365 59 Thermal . | . . . . Explosive . | . . . . Electromagnetic . | . . . . Impact . | . . . . Slashing . | . . . . Piercing . | . . . . Highest Corruption . | . . . . Average Corruption . | . . . . Corruption Purged . | . . . . Corruption Blocked . | . . . . Overload Shots . | . . . . Overflow Damage . | . . . . Projectiles . | . . . . Explosions . | . . . . Melee . | . . . . Knockbacks . | . . . . Impact . | . . . . Kinetic . | . . . . Secondary . | . . . . Self-Inflicted Damage . | . . . . Shots . | . . . . Rammed . | . . . . Targets Rammed . | . . . . Kicked . | . . . . Crushed . | . . . . Highest Temperature 37 | . 37 22 . Average Temperature 13 | . 14 7 . Received Heat Transfer 393 | . 252 141 . Siege Activations . | . . . . Martial Activations . | . . . . Shielding Activations . | . . . . Robots Disrupted . | . . . . Combat Hostiles . | . . . . Robots Corrupted . | . . . . Combat Hostiles . | . . . . Parts Fried . | . . . . Impact Corruptions . | . . . . Robots Melted . | . . . . Combat Hostiles . | . . . . Parts Melted . | . . . . Heat Transferred . | . . . . Parts Sabotaged . | . . . . Parts Stolen . | . . . . Parts Stripped . | . . . . Power Chain Reactions . | . . . . Alert | -11 -10 -10 -10 ------- Run | Yrd Mat Min Exi Maximum Alert Level . | . . . . Low Security (%) 100 | 100 100 100 . Level 1 . | . . . . Level 2 . | . . . . Level 3 . | . . . . Level 4 . | . . . . Level 5 . | . . . . High Security . | . . . . Max Security . | . . . . Peak Influence 110 | . 80 110 . Initial 15 | . . 15 . Average 28 | . 27 33 . Influence Increases 460 | . 295 165 . Destroy 0b10 Robot/C 300 | . 220 80 . Destroy 0b10 Robot/NC 15 | . 15 . . Destroy Leader 64 | . 44 20 . Successful Hack 19 | . 14 5 . Disable Machine 15 | . . 15 . Destroy Structure 2 | . 2 . . Lose Combat Pursuer 45 | . . 45 . Influence Decreases 460 | . 256 204 . Entered New Map 24 | . . 24 . Time Decay 396 | . 236 160 . Lost Part 40 | . 20 20 . Squads Dispatched 1 | . 1 . . Investigation . | . . . . Extermination . | . . . . Reinforcement 1 | . 1 . . Assault . | . . . . Garrison . | . . . . Intercept . | . . . . Searches Triggered . | . . . . Construction Impeded . | . . . . Haulers Reinforced . | . . . . Active Scanning Responses . | . . . . Cargo Convoy Interrupts . | . . . . Stealth | -11 -10 -10 -10 --------- Run | Yrd Mat Min Exi Distress Signals . | . . . . Communications Jammed . | . . . . Distress Signals . | . . . . Times Spotted 28 | . 17 9 2 Peak Tracking Total 12 | . 3 4 12 Tactical Retreats 2 | . . 2 . Traps | -11 -10 -10 -10 ------- Run | Yrd Mat Min Exi Traps Triggered . | . . . . Indirectly . | . . . . Trap Hack Attempts . | . . . . Triggered . | . . . . Disarmed . | . . . . Reprogrammed . | . . . . Reused . | . . . . Traps Extracted . | . . . . Installed . | . . . . Triggered . | . . . . Machines | -11 -10 -10 -10 ---------- Run | Yrd Mat Min Exi Machines Disabled 1 | . . 1 . Max in Single Turn 1 | . . 1 . Machines Repaired . | . . . . Machines Dismantled . | . . . . Machines Sabotaged . | . . . . Overloaded Fab Kills . | . . . . Hacking | -11 -10 -10 -10 --------- Run | Yrd Mat Min Exi Machines Accessed 7 | . 3 1 3 Terminals 4 | . 3 1 . Fabricators . | . . . . Repair Stations . | . . . . Recycling Units . | . . . . Scanalyzers . | . . . . Garrison Access . | . . . . Total Hacks 11 | . 5 1 5 Successful 7 | . 1 1 5 Failed 4 | . 4 . . Catastrophic 1 | . 1 . . Database Lockouts . | . . . . Manual 1 | . . . 1 Terminals 6 | . 5 1 . Fabricators . | . . . . Repair Stations . | . . . . Recycling Units . | . . . . Scanalyzers . | . . . . Garrison Access . | . . . . Terminal Hacks 7 | . 1 1 5 Record 4 | . . . 4 Locate Traps 1 | . 1 . . Zone Layout 1 | . . 1 . Proto ID Catalog 1 | . . . 1 Fabricator Hacks . | . . . . Repair Station Hacks . | . . . . Recycling Unit Hacks . | . . . . Scanalyzer . | . . . . Garrison Access Hacks . | . . . . Unauthorized Hacks . | . . . . Terminals . | . . . . Fabricators . | . . . . Repair Stations . | . . . . Recycling Units . | . . . . Scanalyzers . | . . . . Garrison Access . | . . . . Data Cores Recovered . | . . . . Used . | . . . . Hacking Detections 3 | . 3 . . Full Trace Events . | . . . . Feedback Events . | . . . . Feedback Blocked . | . . . . Robot Schematics Acquired . | . . . . Robots Built . | . . . . Authchips . | . . . . Time . | . . . . Total Robot Build Rating . | . . . . Part Schematics Acquired . | . . . . Parts Built . | . . . . Authchips . | . . . . Time . | . . . . Total Part Build Rating . | . . . . Part Studies Acquired . | . . . . Parts Repaired . | . . . . Time . | . . . . Parts Recycled . | . . . . Recycled Matter . | . . . . Retrieved Matter . | . . . . Retrieved Components . | . . . . Parts Scanalyzed . | . . . . Part Schematics Acquired . | . . . . Parts Damaged . | . . . . Bothacking | -11 -10 -10 -10 ------------ Run | Yrd Mat Min Exi Used RIF Installer . | . . . . Robots Hacked . | . . . . Non-combat . | . . . . Combat . | . . . . Robot Hacks Applied . | . . . . Relay Couplers Released . | . . . . Fabnet Peak Effective % . | . . . . Robots Rewired . | . . . . Allies Hacked . | . . . . Hacks Repelled . | . . . . Allies | -11 -10 -10 -10 -------- Run | Yrd Mat Min Exi Total Allies . | . . . . Largest Group . | . . . . Highest-Rated Group . | . . . . Highest-Rated Ally . | . . . . Total Orders . | . . . . Ally Attacks . | . . . . Total Damage . | . . . . Kills . | . . . . Allies Corrupted . | . . . . Allies Melted . | . . . . Intel | -11 -10 -10 -10 ------- Run | Yrd Mat Min Exi Active Infowar (turns) . | . . . . Robot Analysis Total . | . . . . Derelict Logs Recovered . | . . . . Drone Launches . | . . . . Drone Recoveries . | . . . . Exploration | -11 -10 -10 -10 ------------- Run | Yrd Mat Min Exi Turns Passed 2445 | 79 787 586 993 Spaces Moved 890 | 61 347 174 308 Core 7 | 7 . . . Treads 710 | . 228 174 308 Legs 78 | 54 24 . . Wheels 95 | . 95 . . Hover . | . . . . Flight . | . . . . Fastest Speed 50 | 50 105 240 320 Average Speed 247 | 111 178 307 320 Slowest Speed 320 | 120 240 320 320 Overloaded Moves . | . . . . Propulsion Burnouts . | . . . . Robots Hopped . | . . . . Potential Cave-ins . | . . . . Cave-ins Triggered . | . . . . Exploration Rate (%) 45 | 4 74 38 66 Regions Visited 3 Branch Regions 2 Pre-discovered Areas . | . . . . Known Exits Taken . | . . . . Unknown Exits Taken 3 | 1 1 1 . Scrap Searched . | . . . . Spaces Dug . | . . . . Terrain Destroyed . | . . . . Melee . | . . . . Projectile . | . . . . AOE . | . . . . Terrain Rammed . | . . . . Walls Destroyed . | . . . . Machines Disabled . | . . . . Actions | -11 -10 -10 -10 --------- Run | Yrd Mat Min Exi Total 1012 | 68 435 197 312 Wait 37 | . 30 6 1 Move 887 | 60 346 173 308 Hop . | . . . . Pick Up 12 | 2 7 2 1 Fast Attach 8 | 6 2 . . Attach 2 | . 1 1 . Detach . | . . . . Swap 8 | . 8 . . Drop 2 | . 2 . . Fire 56 | . 39 15 2 Melee . | . . . . Ram . | . . . . Kick . | . . . . Crush . | . . . . Escape Stasis . | . . . . Rewire . | . . . . Trap . | . . . . Miscellaneous . | . . . . Route ------- -11/Scrapyard -10/Materials (discovered 3 exits: [*Mat] / *Min x2) -10/Mines (discovered 2 exits: [*Mat] / *Exi) -10/Exiles History --------- Turn | Location | Event 3 | -11/Scrapyard | Discovered new exit (range 15) 80 | -11/Scrapyard | Entered Materials 241 | -10/Materials | Discovered new exit (range 12) 300 | -10/Materials | Build established: Mutant 442 | -10/Materials | Discovered new exit (range 16) 813 | -10/Materials | Discovered new exit (range 16) 867 | -10/Materials | Entered Mines 872 | -10/Mines | Met a Derelict bent on vengeance 1100 | -10/Mines | Discovered new exit (range 15) 1337 | -10/Mines | Joined a pair of Derelicts in attacking an 0b10 outpost 1343 | -10/Mines | Core integrity fell below 50% 1437 | -10/Mines | Deemed a non-threat by the Exiles lab entrance 1440 | -10/Mines | Discovered new exit (range 5) 1453 | -10/Mines | Entered Exiles 1533 | -10/Exiles | Met 8R-AWN 1585 | -10/Exiles | Met EX-HEX 1671 | -10/Exiles | Met EX-BIN 1732 | -10/Exiles | Aligned with FarCom system 1735 | -10/Exiles | Given EX-Vault access code 1937 | -10/Exiles | Opened EX-Vault 1962 | -10/Exiles | Found YOLO Cannon 2034 | -10/Exiles | Warned to stay clear of 0b10 Research branches 2139 | -10/Exiles | Met EX-DEC 2348 | -10/Exiles | Visited The Gauntlet 2441 | -10/Exiles | Attacked by the Exiles 2446 | -10/Exiles | Destroyed by DAS Turret with DAS Cannon Last Messages --------------- 01962_ Acquired YOLO Cannon. EX-BIN: Oh yeah, I'd suggest you stay away from the 0b10 Research branches, since the FarCom signals could be picked up there, but you're welcome to try if you really want to. And if we have to leave here due to unforeseen circumstances, don't worry the FarCom system will continue to maintain contact via our distributed network. EX-BIN: And don't even think about spreading that code around. We're gonna change it right after you leave. Most certainly not to something like 1234 which I did last time as a little joke and some thief managed to sneak in here and steal a few of HEX's prototypes. EX-DEC: Ah I see we have a visitor. One wrong move in here and I'll invert your atomic chain! 02141_ EX-DEC: "Oops, I hope HEX didn't hear that..." 02226_ Connecting with EX-Message Board... 02441_ EXILES: Hostile robot within lab perimeter. Defensive protocols time, folks! 02443_ Ion Engine destroyed. 02444_ Lgt. Treads destroyed. 02444_ Knocked back. Map ----- +----------------------------------------------------+ | ???????????#"" """#???????## """""????? | | ???????????#"" #????????# """##????? | | ???????????#"" #????????#" "X" """""????? | | ???????????#"" "#????????#" """ # ????? | | ???????????# ""#????????#" """""""""#?????? | | ???????????#"" ""#???????##" ###########?????? | | ??????????### ###??????##"" #???????????????? | | #####????### ###?######"" #???????????????? | | """#####X# #"###""""""" ##??????????????? | | """""" " "" ##???#########?? | | "" """ " #####"""""""""# | | " " " """ """" | | # "" " | | ### " "" | | ??## " | | ???## " | | ????##" | | ?????#""" """""" | | ????##" ######""" | | ????#"" ""##????#####""" | | ???##""" """##?????????##""" | | ???#""" """##???????????#"""" | | ???#""" ""#????????????#"" | | ???#"" ########??????"""" | | ???#""" ##aaa####""" | | ???#"" @% """" | | ???##"" z | | ????#"""" % a | | ????## " | | ?????#" " "" """ | | ?????#"""" ""## ##""" " " ""#" | | ?????#"" ""###? #?####""" """##"""" | | ?????#" """"##???? #????###""""#?##### | | ?????#""" """#??????#??????####???????? | | ?????## ""##????????????????????????? | | ??????#"" """##?????????????????????????? | | ??????##""" ##??????????????????????????? | | ???????##"""" ##???????????????????????????? | | ????????### #????????????????????????????? | | ??????????##### ##????????????????????????????? | | ??????????????## #?????????????????????????????? | | ???????????????# #?????????????????????????????? | | ???????????????# #?????????????????????????????? | | ???????????????# #?????????????????????????????? | | ???????????????# #?????????????????????????????? | | ???????????????# #?????????????????????????????? | | ???????????????# #?????????????????????????????? | | ???????????????# #?????????????????????????????? | | ???????????????# #?????????????????????????????? | | ???????????????# #?????????????????????????????? | +----------------------------------------------------+ Best States ------------- Heat Dissipation 25 Energy Generation 10 Energy Capacity 250 Matter Stores 300 Matter Capacity 300 Sight Range 16 Terrain Scan Density 10 Armor Coverage 225 Evasion (%) 55 Targeting Accuracy 6 Recoil Reduction 2 Item Schematics ----------------- None Robot Schematics ------------------ None Fabricated ------------ Nothing Repaired ---------- Nothing Studied --------- None Alien Tech Used ----------------- None Achievements -------------- None Challenges ------------ None Game ------ Seed HybridProtonChargecaster Manual? 0 Play Time 00:10:46 Cumulative 242.9 hours Start 2025.11.10 @ 17:39:01 End 2025.11.10 @ 17:49:05 Sessions 1 Manual Loads 0 Difficulty Rogue Special Mode None Game No. 297 Rogue 123 Adventurer 174 Explorer 0 Win Type - Total 1 Types 1/0/0/0/0/0/0/0/0/0 Lore% 68 Gallery% 60 Achievement% 42 Wizard Run 0 Options --------- Layout 0 ASCII 0 Keyboard 1 Movement Numpad Keybinds 0 Fullscreen 1 Font 18/Terminus Map View 76x50 Zoom Use 0% Tactical HUD 1 Map Filters NONE Filters NONE Steam 1 RUN: 702bab1c-d735-4fa5-820e-ed095423f62a